fUSD/lending_fUSD_20251231
["ID","MTS","AMOUNT","RATE_DAILY","PERIOD"]
[400169436,1767167198074,-651.39190412,0.00043173,120]
[400169437,1767167198260,-1017.93701157,0.00043173,120]
[400169438,1767167198289,-1420.31324438,0.00043173,120]
[400169439,1767167198317,-2000.0,0.00043173,120]
[400169440,1767167198343,-3275.10964661,0.00043173,30]
[400169441,1767167198368,-351.11803378,0.00043173,120]
[400169442,1767167198394,-430.62368537,0.00043173,120]
[400169443,1767167198422,-283.69163167,0.00043173,120]
[400169444,1767167198447,-907.61339589,0.00043173,120]
[400169445,1767167198472,-189.46655127,0.00043173,30]
[400169446,1767167198498,-269.7776579,0.00043173,120]
[400169447,1767167198524,-1753.18053697,0.00043173,120]
[400169448,1767167198549,-264.23012462,0.00043173,120]
[400169449,1767167198574,-326.48883003,0.00043173,30]
[400169450,1767167198599,-1092.02702625,0.00043173,120]
[400169451,1767167198624,-413.38007802,0.00043173,120]
[400169452,1767167198649,-738.38358598,0.00043173,120]
[400169453,1767167198676,-507.48945207,0.00043173,120]
[400169454,1767167198702,-575.17798187,0.00043173,30]
[400169455,1767167198727,-628.42717374,0.00043173,120]
[400169456,1767167198752,-1062.45735022,0.00043173,120]
[400169457,1767167198777,-1083.82635593,0.00043173,120]
[400169458,1767167198802,-598.77843418,0.00043173,120]
[400169459,1767167198827,-266.90555827,0.00043173,120]
[400169460,1767167198852,-2139.57401144,0.00043173,120]
[400169461,1767167198878,-1335.88609198,0.00043173,120]
[400169462,1767167198903,-301.2212131,0.00043173,30]
[400169463,1767167198930,-287.11985191,0.00043173,120]
[400169464,1767167198958,-398.32337958,0.00043173,30]
[400169465,1767167198986,-204.85836457,0.00043173,120]
[400169466,1767167199013,-358.97476924,0.00043173,120]
[400169467,1767167199040,-298.80731083,0.00043173,30]
[400169468,1767167199067,-283.16952953,0.00043173,30]
[400169469,1767167199093,-183.6228274,0.00043173,30]
[400169470,1767167199118,-174.69604109,0.00043173,30]
[400169471,1767167199145,-216.09370683,0.00043173,31]
[400169472,1767167199169,-1827.57745575,0.00043173,120]
[400169473,1767167199194,-1279.0434416,0.00043173,120]
[400169474,1767167199221,-1323.50005417,0.00043173,30]
[400169475,1767167199245,-273.14314462,0.00043173,30]
[400169476,1767167199271,-3185.66996654,0.00043173,120]
[400169477,1767167199297,-3120.10374327,0.00043173,30]
[400169478,1767167199324,-342.19720797,0.00043173,30]
[400169479,1767167199352,-260.73540958,0.00043173,30]
[400169480,1767167199379,-670.51214326,0.00043173,90]
[400169481,1767167199406,-1537.0542779,0.00043173,120]
[400169482,1767167199432,-1061.74052916,0.00043173,120]
[400169483,1767167199458,-685.75683893,0.00043173,120]
[400169484,1767167199483,-180.36269066,0.00043173,120]
[400169485,1767167199508,-2215.17749535,0.00043173,120]
[400169486,1767167199533,-664.71839957,0.00043173,120]
[400169487,1767167199558,-550.07602365,0.00043173,120]
[400169488,1767167199585,-1063.23834925,0.00043173,120]
[400169489,1767167199610,-767.58331971,0.00043173,120]
[400169490,1767167199634,-204.6117004,0.00043173,30]
[400169491,1767167199660,-789.15740019,0.00043173,120]
[400169492,1767167199685,-507.41115385,0.00043173,120]
[400169493,1767167199711,-2195.94289035,0.00043173,56]
[400169494,1767167199738,-854.71003714,0.00043173,120]
[400169495,1767167199762,-1563.89525038,0.00043173,30]
[400169496,1767167199787,-196.47842099,0.00043173,120]
[400169497,1767167199812,-1155.14371833,0.00043173,120]
[400169498,1767167199837,-1720.06291121,0.00043173,30]
[400169499,1767167199863,-524.86375072,0.00043173,120]
[400169500,1767167199888,-1551.8336397,0.00043173,30]
[400169501,1767167199913,-274.13024299,0.00043173,120]
[400169502,1767167199938,-1418.30988235,0.00043173,120]
[400169503,1767167199963,-1929.18619694,0.00043173,120]
[400169504,1767167199989,-864.10705579,0.00043173,120]
[400169505,1767167200014,-332.28115297,0.00043173,120]
[400169506,1767167200039,-1018.14488486,0.00043173,120]
[400169507,1767167200064,-227.99350166,0.00043173,120]
[400169508,1767167200090,-1218.01402051,0.00043173,30]
[400169509,1767167200119,-2296.803957,0.00043173,120]
[400169510,1767167200144,-1132.51133801,0.00043173,120]
[400169511,1767167200168,-1869.54567035,0.00043173,30]
[400169512,1767167200192,-1310.90762132,0.00043173,30]
[400169513,1767167200216,-1036.07043172,0.00043173,30]
[400169514,1767167200240,-2574.86656977,0.00043173,30]
[400169515,1767167200264,-3228.75244546,0.00043173,120]
[400169516,1767167200288,-251.90688288,0.00043173,30]
[400169517,1767167200312,-1500.0,0.00043173,120]
[400169518,1767167200341,-3000.0,0.00043173,30]
[400169519,1767167200365,-2000.0,0.00043173,120]
[400169520,1767167200391,-2000.0,0.00043173,120]
[400169521,1767167200415,-564.64,0.00043173,60]
[400169522,1767167200440,-355.32669386,0.00043173,31]
[400169523,1767167200464,-221.0,0.00043173,120]
[400169524,1767167200488,-922.88889424,0.00043173,120]
[400169525,1767167200512,-470.92336887,0.00043173,30]
[400169526,1767167200537,-184.0,0.00043173,120]
[400169527,1767167200561,-193.95742943,0.00043173,60]
[400169528,1767167200585,-560.0,0.00043173,120]
[400169529,1767167200610,-236.91005886,0.00043173,120]
[400169530,1767167200634,-2990.8437405,0.00043173,120]
[400169531,1767167200660,-500.0,0.00043173,30]
[400169532,1767167200685,-627.8,0.00043173,120]
[400169533,1767167200856,-1131.27219298,0.00043173,120]
[400169534,1767167200882,-25773.87,0.00043173,30]
[400169535,1767167200907,-716.07755048,0.00043173,120]
[400169536,1767167200932,-406.0,0.00043173,30]
[400169537,1767167200957,-165.11687285,0.00043173,120]
[400169538,1767167200982,-2448.39640575,0.00043173,120]
[400169539,1767167201008,-157.80382854,0.00043173,120]
[400169540,1767167201034,-968.1427876,0.00043173,120]
[400169541,1767167201059,-356.42625585,0.00043173,120]
[400169542,1767167201083,-160.77839991,0.00043173,120]
[400169543,1767167201108,-564.58258846,0.00043173,120]
[400169544,1767167201132,-154.97231363,0.00043173,120]
[400169545,1767167201157,-154.10944259,0.00043173,30]
[400169546,1767167201181,-827.81214846,0.00043173,60]
[400169547,1767167201206,-1594.68260536,0.00043173,120]
[400169548,1767167201230,-164.0656252,0.00043173,30]
[400169549,1767167201254,-151.30376002,0.00043173,120]
[400169550,1767167201280,-431.91,0.00043173,120]
[400169551,1767167201304,-373.01365955,0.00043173,33]
[400169552,1767167201333,-13860.0,0.00043173,30]
[400169553,1767167201358,-1380.0,0.00043173,120]
[400169554,1767167201382,-1152.065,0.00043173,120]
[400169555,1767167201408,-235.57,0.00043173,30]
[400169556,1767167201435,-733.93124129,0.00043173,30]
[400169557,1767167201462,-248.1,0.00043173,30]
[400169558,1767167201487,-160.0,0.00043173,30]
[400169559,1767167201512,-160.0,0.00043173,30]
[400169560,1767167201538,-160.0,0.00043173,30]
[400169561,1767167201564,-248.1,0.00043173,30]
[400169562,1767167201588,-914.0,0.00043173,30]
[400169563,1767167201612,-6020.0,0.00043173,120]
[400169564,1767167201638,-174.62851393,0.00043173,120]
[400169565,1767167201662,-2750.7849431,0.00043173,30]
[400169566,1767167201686,-1115.8191416,0.00043173,120]
[400169567,1767167201711,-100000.0,0.00043173,120]
[400169568,1767167201737,-96757.07666656,0.00043173,60]
[400169569,1767167201762,-200.911,0.00043173,120]
[400169570,1767167201787,-2200.50016817,0.00043173,120]
[400169571,1767167201812,-335.93022108,0.00043173,120]
[400169572,1767167201836,-200000.0,0.00043173,120]
[400169573,1767167201861,-10120.04211126,0.00043173,120]
[400169574,1767167201888,-218.62372992,0.00043173,120]
[400169575,1767167201912,-816.18203128,0.00043173,120]
[400169576,1767167201937,-1000.0,0.00043173,120]
[400169577,1767167201966,-1000.0,0.00043173,120]
[400169578,1767167201993,-1090.0,0.00043173,120]
[400169579,1767167202019,-3752.02,0.00043173,120]
[400169580,1767167202045,-3752.02,0.00043173,120]
[400169581,1767167202072,-150.01,0.00043173,120]
[400169582,1767167202099,-3296.02,0.00043173,120]
[400169583,1767167202125,-1352.02,0.00043173,120]
[400169584,1767167202150,-10944.02,0.00043173,120]
[400169585,1767167202176,-378.037253,0.00043173,30]
[400169586,1767167202201,-625.21198978,0.00043173,120]
[400169587,1767167202226,-4500.0,0.00043173,30]
[400169588,1767167202252,-4500.0,0.00043173,120]
[400169589,1767167202276,-1099.0,0.00043173,30]
[400169590,1767167202302,-1099.0,0.00043173,30]
[400169591,1767167202328,-1099.0,0.00043173,30]
[400169592,1767167202354,-1099.0,0.00043173,30]
[400169593,1767167202381,-1099.0,0.00043173,30]
[400169594,1767167202408,-118023.15,0.00043173,90]
[400169595,1767167202435,-151.0,0.00043173,50]
[400169596,1767167202460,-151.0,0.00043173,50]
[400169597,1767167202485,-151.0,0.00043173,50]
[400169598,1767167202511,-151.0,0.00043173,50]
[400169599,1767167202535,-151.0,0.00043173,50]
[400169600,1767167202560,-151.0,0.00043173,50]
[400169601,1767167202587,-151.0,0.00043173,50]
[400169602,1767167202613,-250.060699,0.00043173,50]
[400169603,1767167202639,-3318.11511176,0.00043173,120]
[400169604,1767167202665,-151.0,0.00043173,50]
[400169605,1767167202690,-151.0,0.00043173,50]
[400169606,1767167202715,-151.0,0.00043173,50]
[400169607,1767167202740,-151.0,0.00043173,50]
[400169608,1767167202764,-151.0,0.00043173,50]
[400169609,1767167202794,-151.0,0.00043173,50]
[400169610,1767167202820,-151.0,0.00043173,50]
[400169611,1767167202844,-151.0,0.00043173,50]
[400169612,1767167202871,-151.0,0.00043173,50]
[400169613,1767167202895,-151.0,0.00043173,50]
[400169614,1767167202920,-179.105124,0.00043173,50]
[400169615,1767167202946,-151.0,0.00043173,50]
[400169616,1767167202971,-151.0,0.00043173,50]
[400169617,1767167202996,-151.0,0.00043173,50]
[400169618,1767167203021,-151.0,0.00043173,50]
[400169619,1767167203048,-151.0,0.00043173,50]
[400169620,1767167203074,-151.0,0.00043173,50]
[400169621,1767167203100,-151.0,0.00043173,50]
[400169622,1767167203127,-151.0,0.00043173,50]
[400169623,1767167203153,-151.0,0.00043173,50]
[400169624,1767167203178,-151.0,0.00043173,50]
[400169625,1767167203203,-151.0,0.00043173,50]
[400169626,1767167203229,-151.0,0.00043173,50]
[400169627,1767167203389,-151.0,0.00043173,50]
[400169628,1767167203429,-151.0,0.00043173,50]
[400169629,1767167203461,-151.0,0.00043173,50]
[400169630,1767167203488,-160.102828,0.00043173,50]
[400169631,1767167203514,-1000.0,0.00043173,120]
[400169632,1767167203539,-1000.0,0.00043173,120]
[400169633,1767167203563,-536.74944723,0.00043173,120]
[400169634,1767167203589,-500.0,0.00043173,120]
[400169635,1767167225851,151.0,0.00043173,120]
[400169636,1767167225886,500.0,0.00043173,120]
[400169637,1767167225926,151.0,0.00043173,120]
[400169638,1767167225963,6888.0,0.00043173,120]
[400169639,1767167225997,500.0,0.00043173,120]
[400169640,1767167226039,500.0,0.00043173,120]
[400169641,1767167226330,151.0,0.00043173,120]
[400169642,1767167226373,250.0,0.00043173,120]
[400169643,1767167226453,156.587,0.00043173,120]
[400169644,1767167226483,500.0,0.00043173,120]
[400169645,1767167226515,151.0,0.00043173,120]
[400169646,1767167226547,518.5,0.00043173,120]
[400169647,1767167226586,250.0,0.00043173,120]
[400169648,1767167226618,500.0,0.00043173,120]
[400169649,1767167226648,156.587,0.00043173,120]
[400169650,1767167226693,7142.856,0.00043173,120]
[400169651,1767167227051,162.380719,0.00043173,120]
[400169652,1767167227100,500.0,0.00043173,120]
[400169653,1767167227136,151.0,0.00043173,120]
[400169654,1767167227167,537.6845,0.00043173,120]
[400169655,1767167227200,250.0,0.00043173,120]
[400169656,1767167227233,500.0,0.00043173,120]
[400169657,1767167227317,7407.141672,0.00043173,120]
[400169658,1767167227355,162.380719,0.00043173,120]
[400169659,1767167227669,168.3888056,0.00043173,120]
[400169660,1767167227706,500.0,0.00043173,120]
[400169661,1767167227744,537.6845,0.00043173,120]
[400169662,1767167227781,250.0,0.00043173,120]
[400169663,1767167227813,151.0,0.00043173,120]
[400169664,1767167227850,500.0,0.00043173,120]
[400169665,1767167227886,7681.20591386,0.00043173,120]
[400169666,1767167227963,168.3888056,0.00043173,120]
[400169667,1767167228280,174.61919141,0.00043173,120]
[400169668,1767167228313,500.0,0.00043173,120]
[400169669,1767167228349,151.0,0.00043173,120]
[400169670,1767167228388,250.0,0.00043173,120]
[400169671,1767167228432,250.0,0.00043173,120]
[400169672,1767167228470,500.0,0.00043173,120]
[400169673,1767167228501,151.0,0.00043173,120]
[400169674,1767167228615,174.61919141,0.00043173,120]
[400169675,1767167228920,151.0,0.00043173,120]
[400169676,1767167228953,250.0,0.00043173,120]
[400169677,1767167228984,500.0,0.00043173,120]
[400169678,1767167229015,7965.41053268,0.00043173,120]
[400169679,1767167229047,151.0,0.00043173,120]
[400169680,1767167229136,500.0,0.00043173,120]
[400169681,1767167229226,181.08010149,0.00043173,120]
[400169682,1767167229367,181.08010149,0.00043173,120]
[400169683,1767167229482,250.0,0.00043173,120]
[400169684,1767167229553,500.0,0.00043173,120]
[400169685,1767167229614,250.0,0.00043173,120]
[400169686,1767167229667,151.0,0.00043173,120]
[400169687,1767167229699,8260.13072239,0.00043173,120]
[400169688,1767167229758,500.0,0.00043173,120]
[400169689,1767167229825,187.78006525,0.00043173,120]
[400169690,1767167230099,250.0,0.00043173,120]
[400169691,1767167230131,187.78006525,0.00043173,120]
[400169692,1767167230205,250.0,0.00043173,120]
[400169693,1767167230274,151.0,0.00043173,120]
[400169694,1767167230323,8565.75555911,0.00043173,120]
[400169695,1767167230408,500.0,0.00043173,120]
[400169696,1767167230444,194.72792766,0.00043173,120]
[400169697,1767167230483,500.0,0.00043173,120]
[400169698,1767167230697,250.0,0.00043173,120]
[400169699,1767167230731,194.72792766,0.00043173,120]
[400169700,1767167230801,151.0,0.00043173,120]
[400169701,1767167230831,250.0,0.00043173,120]
[400169702,1767167230892,151.0,0.00043173,120]
[400169703,1767167230924,8882.6885148,0.00043173,120]
[400169704,1767167230973,500.0,0.00043173,120]
[400169705,1767167231039,194.72792766,0.00043173,120]
[400169706,1767167231303,250.0,0.00043173,120]
[400169707,1767167231344,201.93286099,0.00043173,120]
[400169708,1767167231559,500.0,0.00043173,120]
[400169709,1767167231597,250.0,0.00043173,120]
[400169710,1767167231628,151.0,0.00043173,120]
[400169711,1767167231667,500.0,0.00043173,120]
[400169712,1767167231962,209.40437684,0.00043173,120]
[400169713,1767167232030,250.0,0.00043173,120]
[400169714,1767167232310,500.0,0.00043173,120]
[400169715,1767167232494,151.0,0.00043173,120]
[400169716,1767167232598,217.15233878,0.00043173,120]
[400169717,1767167232640,250.0,0.00043173,120]
[400169718,1767167232932,500.0,0.00043173,120]
[400169719,1767167233123,151.0,0.00043173,120]
[400169720,1767167233211,225.18697532,0.00043173,120]
[400169721,1767167233270,250.0,0.00043173,120]
[400169722,1767167233534,500.0,0.00043173,120]
[400169723,1767167233565,250.0,0.00043173,120]
[400169724,1767167233808,233.51889341,0.00043173,120]
[400169725,1767167234053,988.0,0.00043173,120]
[400169726,1767167234135,500.0,0.00043173,120]
[400169727,1767167234167,250.0,0.00043173,120]
[400169728,1767167234200,500.0,0.00043173,120]
[400169729,1767167234294,151.0,0.00043173,120]
[400169730,1767167234414,242.15909246,0.00043173,120]
[400169731,1767167234792,500.0,0.00043173,120]
[400169732,1767167234825,250.0,0.00043173,120]
[400169733,1767167234855,500.0,0.00043173,120]
[400169734,1767167234884,988.0,0.00043173,120]
[400169735,1767167234914,156.587,0.00043173,120]
[400169736,1767167234944,500.0,0.00043173,120]
[400169737,1767167235015,251.11897888,0.00043173,120]
[400169738,1767167235333,500.0,0.00043173,120]
[400169739,1767167235366,250.0,0.00043173,120]
[400169740,1767167235398,500.0,0.00043173,120]
[400169741,1767167235429,988.0,0.00043173,120]
[400169742,1767167235544,162.380719,0.00043173,120]
[400169743,1767167235589,500.0,0.00043173,120]
[400169744,1767167235628,260.4103811,0.00043173,120]
[400169745,1767167235917,500.0,0.00043173,120]
[400169746,1767167235960,250.0,0.00043173,120]
[400169747,1767167235993,500.0,0.00043173,120]
[400169748,1767167236026,988.0,0.00043173,120]
[400169749,1767167236130,162.380719,0.00043173,120]
[400169750,1767167236184,500.0,0.00043173,120]
[400169751,1767167236242,260.4103811,0.00043173,120]
[400169752,1767167236296,250.0,0.00043173,120]
[400169753,1767167236349,300.0,0.00043173,120]
[400169754,1767167236553,250.0,0.00043173,120]
[400169755,1767167236592,500.0,0.00043173,120]
[400169756,1767167236625,988.0,0.00043173,120]
[400169757,1767167236782,500.0,0.00043173,120]
[400169758,1767167236951,311.1,0.00043173,120]
[400169759,1767167237161,250.0,0.00043173,120]
[400169760,1767167237194,500.0,0.00043173,120]
[400169761,1767167237238,988.0,0.00043173,120]
[400169762,1767167237393,500.0,0.00043173,120]
[400169763,1767167237488,520.0,0.00043173,120]
[400169764,1767167237576,322.6107,0.00043173,120]
[400169765,1767167237761,250.0,0.00043173,120]
[400169766,1767167237792,500.0,0.00043173,120]
[400169767,1767167237864,988.0,0.00043173,120]
[400169768,1767167237990,500.0,0.00043173,120]
[400169769,1767167238231,539.24,0.00043173,120]
[400169770,1767167238319,334.5472959,0.00043173,120]
[400169771,1767167238375,250.0,0.00043173,120]
[400169772,1767167238408,500.0,0.00043173,120]
[400169773,1767167238476,988.0,0.00043173,120]
[400169774,1767167238595,500.0,0.00043173,120]
[400169775,1767167238628,500.0,0.00043173,120]
[400169776,1767167238686,559.19188,0.00043173,120]
[400169777,1767167238785,346.92554585,0.00043173,120]
[400169778,1767167239162,500.0,0.00043173,120]
[400169779,1767167239195,500.0,0.00043173,120]
[400169780,1767167239247,500.0,0.00043173,120]
[400169781,1767167239303,414.0,0.00043173,120]
[400169782,1767167239339,579.88197956,0.00043173,120]
[400169783,1767167239394,359.76179104,0.00043173,120]
[400169784,1767167239782,500.0,0.00043173,120]
[400169785,1767167239848,500.0,0.00043173,120]
[400169786,1767167239913,601.3376128,0.00043173,120]
[400169787,1767167239946,429.318,0.00043173,120]
[400169788,1767167240003,373.07297731,0.00043173,120]
[400169789,1767167240470,500.0,0.00043173,120]
[400169790,1767167240531,445.202766,0.00043173,120]
[400169791,1767167240601,386.87667747,0.00043173,120]
[400169792,1767167241113,500.0,0.00043173,120]
[400169793,1767167241145,461.67526834,0.00043173,120]
[400169794,1767167241225,401.19111454,0.00043173,120]
[400169795,1767167241342,272.61329342,0.00043173,120]
[400169796,1767167241683,501.83871339,0.00043173,120]
[400169797,1767167241730,500.0,0.00043173,120]
[400169798,1767167241844,416.03518578,0.00043173,120]
[400169799,1767167241898,478.75725327,0.00043173,120]
[400169800,1767167242531,496.47127164,0.00043173,120]
[400169801,1767167242873,500.0,0.00043173,120]
[400169802,1767167242946,431.42848765,0.00043173,120]
[400169803,1767167243144,514.84070869,0.00043173,120]
[400169804,1767167243486,500.0,0.00043173,120]
[400169805,1767167243583,447.3913417,0.00043173,120]
[400169806,1767167243765,533.88981491,0.00043173,120]
[400169807,1767167244096,500.0,0.00043173,120]
[400169808,1767167244198,463.94482134,0.00043173,120]
[400169809,1767167244410,553.64373807,0.00043173,120]
[400169810,1767167244471,1000.0,0.00043173,120]
[400169811,1767167244540,151.0,0.00043173,120]
[400169812,1767167244986,481.11077973,0.00043173,120]
[400169813,1767167245021,574.12855637,0.00043173,120]
[400169814,1767167245107,1000.0,0.00043173,120]
[400169815,1767167245147,151.0,0.00043173,120]
[400169816,1767167245430,500.0,0.00043173,120]
[400169817,1767167245467,498.91187858,0.00043173,120]
[400169818,1767167245646,595.37131296,0.00043173,120]
[400169819,1767167245725,1000.0,0.00043173,120]
[400169820,1767167245975,151.0,0.00043173,120]
[400169821,1767167246034,517.37161808,0.00043173,120]
[400169822,1767167246068,500.0,0.00043173,120]
[400169825,1767167246310,617.40005154,0.00043173,120]
[400169826,1767167246344,1000.0,0.00043173,120]
[400169827,1767167246645,536.51436795,0.00043173,120]
[400169828,1767167246679,500.0,0.00043173,120]
[400169829,1767167246937,640.24385345,0.00043173,120]
[400169830,1767167246970,1000.0,0.00043173,120]
[400169831,1767167247299,556.36539957,0.00043173,120]
[400169832,1767167247335,500.0,0.00043173,120]
[400169833,1767167247585,1000.0,0.00043173,120]
[400169834,1767167247662,663.93287602,0.00043173,120]
[400169835,1767167247937,576.95091935,0.00043173,120]
[400169836,1767167247970,500.0,0.00043173,120]
[400169837,1767167248271,1000.0,0.00043173,120]
[400169838,1767167248328,663.93287602,0.00043173,120]
[400169839,1767167248540,200.0,0.00043173,120]
[400169840,1767167248572,576.95091935,0.00043173,120]
[400169841,1767167248605,500.0,0.00043173,120]
[400169842,1767167248897,1000.0,0.00043173,120]
[400169843,1767167249365,207.4,0.00043173,120]
[400169844,1767167249404,500.0,0.00043173,120]
[400169845,1767167249519,1000.0,0.00043173,120]
[400169846,1767167249815,207.4,0.00043173,120]
[400169847,1767167249867,500.0,0.00043173,120]
[400169848,1767167250593,500.0,0.00043173,120]
[400169849,1767167251512,1954.16062803,0.00043173,120]
[400169850,1767167254244,500.0,0.00043173,120]
[400169851,1767167254517,665.49472696,0.00043173,120]
[400169852,1767167254846,500.0,0.00043173,120]
[400169853,1767167255500,500.0,0.00043173,120]
[400169854,1767167256155,500.0,0.00043173,120]
[400169855,1767167256758,500.0,0.00043173,120]
[400169856,1767167257386,500.0,0.00043173,120]
[400169857,1767167258010,500.0,0.00043173,120]
[400169858,1767167258654,500.0,0.00043173,120]
[400169859,1767167259261,500.0,0.00043173,120]
[400169869,1767167286160,300.0,0.00043173,120]
[400169870,1767167286239,867.90464068,0.00043173,120]
[400169871,1767167286750,162.39685543,0.00043173,120]
[400169872,1767167286922,311.1,0.00043173,120]
[400169873,1767167287423,322.6107,0.00043173,120]
[400169874,1767167288029,334.5472959,0.00043173,120]
[400169875,1767167288726,334.5472959,0.00043173,120]
[400169876,1767167293873,265.93136971,0.00043173,120]
[400169878,1767167294734,425.32843208,0.00043173,120]
[400169879,1767167297428,160.0,0.00043173,30]
[400169880,1767167297503,160.0,0.00043173,30]
[400169881,1767167297573,227.0,0.00043173,30]
[400169886,1767167343915,3928.44348774,0.00043173,30]
[400169892,1767167385866,196.68,0.00010971,2]
[400169893,1767167386069,196.68,0.00012068,2]
[400169907,1767167431792,-258.0,0.00013165,2]
[400169909,1767167431802,-196.68,0.00013165,2]
[400169911,1767167431813,-167.19533709,0.00013185,2]
[400169914,1767167431828,-1795.41273042,0.00013185,2]
[400169915,1767167431838,-300.0,0.00013283,2]
[400169916,1767167431848,-1200.0,0.00013283,2]
[400169917,1767167431859,-300.0,0.00013283,2]
[400169918,1767167431869,-377.70640394,0.00013284,2]
[400169919,1767167431879,-500.0,0.00013284,2]
[400169920,1767167431890,-500.0,0.00013284,2]
[400169921,1767167431900,-500.0,0.00013284,2]
[400169922,1767167431910,-500.0,0.00013284,2]
[400169923,1767167431920,-500.0,0.00013284,2]
[400169924,1767167431930,-500.0,0.00013284,2]
[400169925,1767167431940,-500.0,0.00013284,2]
[400169926,1767167431950,-500.0,0.00013284,2]
[400169927,1767167431959,-500.0,0.00013284,2]
[400169928,1767167431971,-500.0,0.00013284,2]
[400169929,1767167431981,-500.0,0.00013284,2]
[400169930,1767167431991,-500.0,0.00013284,2]
[400169931,1767167432001,-500.0,0.00013284,2]
[400169932,1767167432011,-500.0,0.00013284,2]
[400169933,1767167432022,-500.0,0.00013284,2]
[400169934,1767167432032,-500.0,0.00013284,2]
[400169935,1767167432042,-500.0,0.00013284,2]
[400169936,1767167432051,-500.0,0.00013284,2]
[400169937,1767167432062,-218.07677009,0.00013284,2]
[400169938,1767167432072,-500.0,0.00013284,2]
[400169940,1767167432083,-500.0,0.00013284,2]
[400169941,1767167432093,-500.0,0.00013284,2]
[400169942,1767167432104,-500.0,0.00013284,2]
[400169944,1767167432114,-500.0,0.00013284,2]
[400169945,1767167432124,-500.0,0.00013284,2]
[400169946,1767167432134,-500.0,0.00013284,2]
[400169947,1767167432145,-500.0,0.00013284,2]
[400169949,1767167432155,-231.43389413,0.00013284,2]
[400169950,1767167432167,-268.56610587,0.00013284,2]
[400169951,1767167432177,-500.0,0.00013284,2]
[400169952,1767167432187,-100.99389413,0.00013284,2]
[400169953,1767167432199,-399.00610587,0.00013284,2]
[400169954,1767167432222,-416.81789761,0.00013284,2]
[400169955,1767167432236,-83.18210239,0.00013284,2]
[400169956,1767167432246,-378.94799321,0.00013284,2]
[400169957,1767167432258,-121.05200679,0.00013284,2]
[400169958,1767167432269,-500.0,0.00013284,2]
[400169959,1767167432279,-454.37799321,0.00013284,2]
[400169960,1767167432296,-45.62200679,0.00013284,2]
[400169961,1767167432307,-500.0,0.00013284,2]
[400169962,1767167432318,-453.37799321,0.00013284,2]
[400169963,1767167432330,-46.62200679,0.00013284,2]
[400169964,1767167432340,-500.0,0.00013284,2]
[400169965,1767167432350,-47.99594986,0.00013284,2]
[400169966,1767167432362,-202.00405015,0.00013284,2]
[400169967,1767167432372,-69.41037785,0.00013284,2]
[400169968,1767167432385,-430.58962215,0.00013284,2]
[400169969,1767167432395,-55.20170834,0.00013284,2]
[400169970,1767167432411,-384.78397968,0.00013284,2]
[400169971,1767167432424,-1749.08827873,0.00013284,2]
[400169972,1767167432435,-1815.05849312,0.00013284,2]
[400169974,1767167437939,-1017.39060821,0.00013284,2]
[400169975,1767167437952,-582.08436245,0.00013284,2]
[400169976,1767167438070,-2774.8928558,0.00013284,2]
[400169977,1767167438083,-6113.94050177,0.00013284,2]